Cogmind - Beta 11 X6 @@@ ROGUE MODE // 2021.08.11 @ 12:17:24 Player: Olga Result: Self-destructed Performance ------------- Evolutions (1) 500 Regions Visited (2) 400 Robots Destroyed (28) 140 Value Destroyed (797) 797 Prototype IDs (0) 0 Alien Tech Used (0) 0 Bonus (0) 0 TOTAL SCORE: 1837 Bonus ------- None Cogmind --------- Core Integrity 301/400 Matter 241/300 Energy 94/100 System Corruption 0% Temperature Cool (0) Movement Walking (120) Location -9/Materials Parts ------- > --- POWER (1) -------- (None) > --- PROPULSION (4) --- Aluminum Leg Aluminum Leg Aluminum Leg Aluminum Leg > --- UTILITY (2) ------ Small Storage Unit > --- WEAPON (2) ------- Light Assault Rifle Light Cannon > --- INVENTORY (8) ---- Ion Engine Light Ion Engine Improved Ion Engine Compact Wheel Compact Wheel Small Laser Light Assault Rifle Light Cannon Peak State ------------ > --- POWER ------------ Light Nuclear Core > --- PROPULSION ------- Aluminum Leg Aluminum Leg Aluminum Leg Aluminum Leg > --- UTILITY ---------- Small Storage Unit > --- WEAPON ----------- Light Cannon Grenade Launcher > --- INVENTORY -------- Ion Engine Light Ion Engine Compact Wheel Compact Wheel Small Laser Light Cannon [Rating: 10] Favorites ----------- Power Light Nuclear Core Engine Ion Engine Power Core Light Nuclear Core Propulsion Aluminum Leg Leg Aluminum Leg Utility Small Storage Unit Device Heat Sink Storage Small Storage Unit Weapon Medium Laser Energy Gun Medium Laser Ballistic Gun Light Assault Rifle Ballistic Cannon Light Cannon Launcher Grenade Launcher Build | -11 -10 -9 ------- Run | Scr Mat Mat Slots Evolved 2 | . . 2 Power . | . . . Propulsion 2 | . . 2 Utility . | . . . Weapon . | . . . Parts Attached 13 | . 10 3 Power 1 | . 1 . Engine . | . . . Core 1 | . 1 . Reactor . | . . . Propulsion 5 | . 3 2 Treads . | . . . Leg 5 | . 3 2 Wheel . | . . . Hover . | . . . Flight . | . . . Utility 1 | . 1 . Device 1 | . 1 . Storage . | . . . Processor . | . . . Hackware . | . . . Protection . | . . . Artifact . | . . . Weapon 6 | . 5 1 Energy Gun 1 | . 1 . Energy Cannon . | . . . Ballistic Gun 2 | . 1 1 Ballistic Cannon 2 | . 2 . Launcher 1 | . 1 . Special Weapon . | . . . Impact Weapon . | . . . Slashing Weapon . | . . . Piercing Weapon . | . . . Special Melee Weapon . | . . . Unidentified Prototypes . | . . . Parts Lost 8 | . 6 2 Power 2 | . 1 1 Propulsion 1 | . 1 . Utility 1 | . 1 . Weapon 4 | . 3 1 Highest Loss Streak 3 | . 3 2 Average Slot Usage (%) 87 | . 87 86 Engine 5 | . 6 . Core 6 | . 6 10 Leg 30 | . 27 44 Device 4 | . 5 . Storage 13 | . 14 11 Energy Gun 13 | . 16 . Ballistic Gun 2 | . 3 1 Ballistic Cannon 5 | . 4 11 Launcher 3 | . 2 9 Naked Turns . | . . . Heaviest Build 16 | 14 16 16 Greatest Support 40 | 20 20 40 Greatest Overweight (x) . | . . . Average Overweight (x) . | . . . Largest Inventory Capacity 8 | 8 8 8 Average Capacity 8 | 8 8 8 Most Carried 8 | 6 8 8 Average Carried 7 | 6 7 6 Final Capacity 8 | 8 8 8 Final Carried 8 | 6 8 8 Class Distribution -------------------- 59% | Mutant 40% | Scavenger-Mutant Dominant Class ---------------- Mutant | -10/Materials Scavenger-Mutant | -9/Materials Resources | -11 -10 -9 ----------- Run | Scr Mat Mat Matter Collected 488 | 194 171 123 Remotely . | . . . Salvage Created 628 | . 560 68 Parts 50 | . 31 19 Haulers Intercepted . | . . . Recyclers Shooed 2 | . 1 1 Parts Field Recycled . | . . . Retrieved Matter . | . . . Parts Self-Destructed . | . . . Prevented . | . . . Kills | -11 -10 -9 ------- Run | Scr Mat Mat Combat Hostiles Destroyed 25 | . 16 9 Guns 12 | . 11 1 Cannons 2 | . 1 1 AOE 11 | . 4 7 Classes Destroyed 6 | . 3 3 Worker 1 | . 1 . Builder 1 | . . 1 Watcher 1 | . 1 . Swarmer 8 | . . 8 Grunt 16 | . 16 . Sentry 1 | . . 1 Best Kill Streak 9 | . 6 9 Combat Bots Only 8 | . 5 8 Max Kills in Single Turn 3 | . 2 3 Gunslinging . | . . . Exploded 3 | . 2 3 Melee . | . . . Uniques/NPCs Destroyed . | . . . Combat | -11 -10 -9 -------- Run | Scr Mat Mat Damage Taken 1376 | . 930 446 Core 289 | . 190 99 Absorbed by Shields . | . . . Core Remaining (%) 62 | 100 24 . Volleys Fired 74 | . 64 10 Largest 2 | . 2 2 Hottest 90 | . 90 65 Shots Fired 129 | . 110 19 Gun 95 | . 92 3 Cannon 23 | . 13 10 Launcher 11 | . 5 6 Special . | . . . Kinetic 53 | . 40 13 Thermal 54 | . 54 . Explosive 11 | . 5 6 Electromagnetic 11 | . 11 . Robot Hit Streak 10 | . 10 5 Robot Miss Streak 3 | . 3 2 Penetration Max . | . . . Secondary Targets . | . . . Shots Hit Robots 75 | . 69 6 Core Hits 49 | . 35 14 Critical Kills . | . . . Critical Parts Destroyed 1 | . . 1 Critical Strikes 4 | . 1 3 Burn 1 | . 1 . Destroy 1 | . . 1 Blast 2 | . . 2 Melee Attacks . | . . . Impact . | . . . Slashing . | . . . Piercing . | . . . Sneak Attacks . | . . . Combat Hostiles . | . . . Follow-up Attacks . | . . . Damage Inflicted 1751 | . 1168 583 Guns 729 | . 704 25 Cannons 277 | . 161 116 Explosions 745 | . 303 442 Melee . | . . . Ramming . | . . . Kinetic 450 | . 309 141 Thermal 437 | . 437 . Explosive 745 | . 303 442 Electromagnetic 119 | . 119 . Impact . | . . . Slashing . | . . . Piercing . | . . . Highest Corruption . | . . . Average Corruption . | . . . Corruption Purged . | . . . Overload Shots . | . . . Overflow Damage 25 | . . 25 Projectiles . | . . . Explosions 25 | . . 25 Melee . | . . . Knockbacks 3 | . 1 2 Impact . | . . . Kinetic 3 | . 1 2 Secondary . | . . . Self-Inflicted Damage . | . . . Shots . | . . . Rammed . | . . . Targets Rammed . | . . . Kicked . | . . . Crushed . | . . . Highest Temperature 454 | . 454 18 Average Temperature 139 | . 152 12 Received Heat Transfer 576 | . 549 27 Effects 6 | . 6 . Shutdowns 4 | . 4 . Interference 2 | . 2 . Siege Activations . | . . . Robots Corrupted . | . . . Combat Hostiles . | . . . Parts Fried . | . . . Impact Corruptions . | . . . Robots Melted . | . . . Combat Hostiles . | . . . Parts Melted 1 | . 1 . Heat Transferred 1238 | . 1238 . Parts Sabotaged . | . . . Parts Stolen . | . . . Parts Stripped . | . . . Power Chain Reactions . | . . . Missiles Intercepted . | . . . Alert | -11 -10 -9 ------- Run | Scr Mat Mat Peak Influence 397 | . 392 397 Initial 149 | . . 149 Average 237 | . 234 260 Maximum Alert Level 1 | . 1 1 Low Security (%) 33 | 100 29 47 Level 1 66 | . 70 52 Level 2 . | . . . Level 3 . | . . . Level 4 . | . . . Level 5 . | . . . High Security . | . . . Max Security . | . . . Squads Dispatched 5 | . 5 . Investigation 4 | . 4 . Extermination . | . . . Reinforcement 1 | . 1 . Assault . | . . . Garrison . | . . . Intercept . | . . . Construction Impeded . | . . . Haulers Reinforced . | . . . Active Scanning Responses . | . . . Cargo Convoy Interrupts . | . . . Stealth | -11 -10 -9 --------- Run | Scr Mat Mat Distress Signals 2 | . 1 1 Communications Jammed . | . . . Distress Signals . | . . . Times Spotted 42 | . 24 18 Peak Tracking Total 8 | . 5 8 Tactical Retreats 2 | . 2 . Traps | -11 -10 -9 ------- Run | Scr Mat Mat Traps Triggered 1 | . 1 . Indirectly . | . . . Trap Hack Attempts . | . . . Triggered . | . . . Disarmed . | . . . Reprogrammed . | . . . Reused . | . . . Traps Extracted . | . . . Installed . | . . . Triggered . | . . . Machines | -11 -10 -9 ---------- Run | Scr Mat Mat Machines Disabled 2 | . 1 1 Max in Single Turn 1 | . 1 1 Machines Sabotaged 1 | . 1 . Garrisons Compromised . | . . . Overloaded Fab Kills . | . . . Fab Network Shutdowns . | . . . Hacking | -11 -10 -9 --------- Run | Scr Mat Mat Machines Accessed 6 | . 5 1 Terminals 4 | . 3 1 Fabricators . | . . . Repair Stations . | . . . Recycling Units 2 | . 2 . Scanalyzers . | . . . Garrison Access . | . . . Total Hacks 17 | . 12 5 Successful 9 | . 6 3 Failed 8 | . 6 2 Catastrophic 2 | . 2 . Database Lockouts . | . . . Manual 17 | . 12 5 Terminals 14 | . 9 5 Fabricators . | . . . Repair Stations . | . . . Recycling Units 3 | . 3 . Scanalyzers . | . . . Garrison Access . | . . . Terminal Hacks 2 | . 1 1 Level Access Points 1 | . 1 . Branch Access Points 1 | . . 1 Fabricator Hacks . | . . . Repair Station Hacks . | . . . Recycling Unit Hacks . | . . . Scanalyzer . | . . . Garrison Access Hacks . | . . . Unauthorized Hacks 7 | . 5 2 Terminals 5 | . 3 2 Track 1 | . . 1 Botnet 3 | . 2 1 Sabotage 1 | . 1 . Fabricators . | . . . Repair Stations . | . . . Recycling Units 2 | . 2 . Tunnel 2 | . 2 . Scanalyzers . | . . . Garrison Access . | . . . Data Cores Recovered . | . . . Used . | . . . Hacking Detections 3 | . 2 1 Full Trace Events . | . . . Feedback Events . | . . . Feedback Blocked . | . . . Robot Schematics Acquired . | . . . Robots Built . | . . . Matter . | . . . Time . | . . . Total Robot Build Rating . | . . . Part Schematics Acquired . | . . . Parts Built . | . . . Matter . | . . . Time . | . . . Total Part Build Rating . | . . . Parts Repaired . | . . . Time . | . . . Parts Recycled . | . . . Recycled Matter . | . . . Retrieved Matter . | . . . Retrieved Components . | . . . Parts Scanalyzed . | . . . Part Schematics Acquired . | . . . Parts Damaged . | . . . Bothacking | -11 -10 -9 ------------ Run | Scr Mat Mat Used RIF Installer . | . . . Robots Hacked . | . . . Non-combat . | . . . Combat . | . . . Robot Hacks Applied . | . . . Relay Couplers Released . | . . . Robots Rewired . | . . . Allies Hacked . | . . . Hacks Repelled . | . . . Allies | -11 -10 -9 -------- Run | Scr Mat Mat Total Allies . | . . . Largest Group . | . . . Highest-Rated Group . | . . . Highest-Rated Ally . | . . . Total Orders . | . . . Ally Attacks . | . . . Total Damage . | . . . Kills . | . . . Allies Corrupted . | . . . Allies Melted . | . . . Intel | -11 -10 -9 ------- Run | Scr Mat Mat Robot Analysis Total . | . . . Derelict Logs Recovered . | . . . Drone Launches . | . . . Drone Recoveries . | . . . Exploration | -11 -10 -9 ------------- Run | Scr Mat Mat Turns Passed 604 | 3 491 110 Spaces Moved 275 | 3 209 63 Core . | . . . Treads . | . . . Legs 275 | 3 209 63 Wheels . | . . . Hover . | . . . Flight . | . . . Fastest Speed 120 | 120 120 120 Average Speed 120 | 120 120 120 Slowest Speed 120 | 120 120 120 Overloaded Moves . | . . . Propulsion Burnouts . | . . . Robots Hopped . | . . . Cave-ins Triggered . | . . . Exploration Rate (%) 12 | 1 25 12 Regions Visited 2 Branch Regions . Pre-discovered Areas 2 | . 2 . Known Exits Taken 1 | . 1 . Unknown Exits Taken 1 | 1 . . Scrap Searched . | . . . Spaces Dug . | . . . Terrain Destroyed 32 | . 8 24 Melee . | . . . Projectile . | . . . AOE 32 | . 8 24 Terrain Rammed . | . . . Walls Destroyed . | . . . Machines Disabled . | . . . Actions | -11 -10 -9 --------- Run | Scr Mat Mat Total 427 | 2 347 78 Wait 49 | . 49 . Move 273 | 2 208 63 Hop . | . . . Pick Up 12 | . 10 2 Fast Attach 3 | . 2 1 Attach 6 | . 4 2 Detach . | . . . Swap 4 | . 4 . Drop 6 | . 6 . Fire 74 | . 64 10 Melee . | . . . Ram . | . . . Kick . | . . . Crush . | . . . Escape Stasis . | . . . Rewire . | . . . Trap . | . . . Miscellaneous . | . . . Route ------- -11/Scrapyard -10/Materials (discovered 3 exits: *Mat x3) -9/Materials (discovered 1 exit: *Min) History --------- Turn | Location | Event 1 | -11/Scrapyard | Discovered new exit (range 2) 4 | -11/Scrapyard | Entered Materials 279 | -10/Materials | Core integrity fell below 50% 296 | -10/Materials | Lost 3 parts (1p1n1w) 451 | -10/Materials | Identified exit to Materials 495 | -10/Materials | Entered another Materials area 495 | -9/Materials | Evolved 2 slots: Propulsion x2 512 | -9/Materials | Identified exit to Mines 588 | -9/Materials | Destroyed 8 combat bots 605 | -9/Materials | Self-destructed Last Messages --------------- 00585_ Acquired 6 matter. 00586_ U-05 Engineer lays Concrete. 00587_ Acquired 56 matter. 00588_ K-01 Serf collects debris. 00588_ U-05 Engineer builds a Door. 00591_ Acquired Lgt. Assault Rifle. 00592_ U-05 Engineer lays Concrete. 00594_ K-01 Serf collects debris. 00595_ U-05 Engineer lays Concrete. 00596_ Lgt. Nuclear Core destroyed. 00596_ S-10 Pest destroyed. 00596_ U-05 Engineer lays Concrete. 00597_ K-01 Serf collects debris. 00597_ U-05 Engineer lays Concrete. 00598_ U-05 Engineer builds a Wall. 00601_ K-01 Serf collects debris. 00601_ Acquired 5 matter. 00602_ U-05 Engineer lays Concrete. 00604_ K-01 Serf collects debris. 00604_ U-05 Engineer lays Concrete. Map ----- +----------------------------------------------------+ | ?????????????????????????????????????????????????? | | ?????????????????????????????????????????????????? | | ?????????????????????????????????????????????????? | | ?????????????????????????????????????????????????? | | ?????????????????????????????????????????????????? | | ?????????????????????????????????????????????????? | | ?????????????????????????????????????????????????? | | ?????????????????????????????????????????????????? | | ??#######????????????????????????????????????????? | | ??# #????????????????????????????????????????? | | ??# #??????????????? a??????????????????????? | | ??# #??????????????? ??????????????????????? | | ### #?????????????## ##????????????????????? | | # """ #?????????????# g""????????????????????? | | # """ #####??####???# ????????????????????? | | + """ ## ?? #???# g !????????????????????? | | r# ## #???# > "????????????????????? | | # """ ## """ #???? ?????????????????????? | | # """ ##! """"" ##??? ?????????????????????? | | # """ ## """"" #??? %"?????????????????????? | | # ## """"" ##???# #?????????????????????? | | ######?# " " #???# s#?????????????????????? | | #??????# ####?#u* #?????????????????????? | | #??????# ## ###[k #?????????????????????? | | ######### # ##s #?????????????????????? | | #=@ #?????????????????????? | | *=#* =#?????????????????????? | | u/ *+?????????????????????? | | *!t #s #?????????????????????? | | ############### ! #?????????????????????? | | ??????????????# # #?????????????????????? | | ??????????????#### # ## #?????????????????????? | | ???????????????? + ????????????????????? | | ??????????????? # ??????????????????? | | ?????????????? # ?????????????????? | | ????????????# # #????????????????? | | ????????????# """ """ # ???????????????? | | ?????????????# """ """ # ???????????????? | | ?????????????#??"" """ # ==???????????????? | | ????????????????? ??? # =????????????????? | | ?????????????????##???## """ ?????????????????? | | ???????????????????????? """ ?????????????????? | | ???????????????????????? ??????????????????????? | | ???????????????????????? ??????????????????????? | | ?????????????????????????????????????????????????? | | ?????????????????????????????????????????????????? | | ?????????????????????????????????????????????????? | | ?????????????????????????????????????????????????? | | ?????????????????????????????????????????????????? | | ?????????????????????????????????????????????????? | +----------------------------------------------------+ Best States ------------- Heat Dissipation 35 Energy Generation 14 Energy Capacity 250 Matter Stores 300 Matter Capacity 300 Sight Range 16 Terrain Scan Density 10 Evasion (%) 55 Item Schematics ----------------- None Robot Schematics ------------------ None Fabricated ------------ Nothing Alien Tech Used ----------------- None Achievements -------------- None Challenges ------------ None Game ------ Seed TrackerIonicRecalibrator Manual? 0 Play Time 00:13:11 Cumulative 63.9 hours Start 2021.08.11 @ 12:06:44 End 2021.08.11 @ 12:17:24 Sessions 1 Manual Loads 0 Difficulty Rogue Special Mode None Game No. 80 Rogue 80 Adventurer 0 Explorer 0 Win Type - Total 0 Types 0/0/0/0/0/0/0/0/0 Lore% 49 Gallery% 45 Achievement% 37 Wizard Run 0 Options --------- ASCII 1 Keyboard 0 Movement Mouse Keybinds 0 Fullscreen 1 Font 18/SmallcapsGlow Map View 66x50 Tactical HUD 1 Map Filters NONE Filters NONE Steam 1 RUN: d58d33d4-f01f-427d-9856-d042d0683ba3